bitfinex/quotes_ETHUSD_20251224
["timestamp","ask_amount","ask_price","bid_price","bid_amount"]
[1766559032661,5.5378,2936.7,2936.3,3.40564578]
[1766559032865,5.5378,2936.7,2936.3,3.93752936]
[1766559034642,0.001,2936.7,2936.3,3.93752936]
[1766559036764,0.001,2936.7,2936.3,4.82852936]
[1766559039269,5.5368,2936.9,2936.3,8.23417592]
[1766559039440,5.5368,2936.9,2936.3,4.82852936]
[1766559041282,5.5368,2936.9,2936.3,0.53188358]
[1766559041566,5.5368,2936.9,2936.3,4.29664463]
[1766559042136,5.5368,2936.9,2936.3,4.33070109]
[1766559045168,5.5378,2936.9,2936.3,4.33070109]
[1766559046072,5.5378,2936.9,2936.3,4.29664463]
[1766559047152,5.5378,2936.9,2936.4,0.0340553]
[1766559048241,5.5378,2936.9,2936.3,4.29660086]
[1766559048441,5.5378,2936.9,2936.3,5.06683592]
[1766559049178,0.001,2936.9,2936.4,3.40552545]
[1766559049375,0.001,2936.9,2936.5,0.03405414]
[1766559050374,0.001,2936.9,2936.5,3.43942962]
[1766559052959,0.001,2936.9,2936.5,0.03405414]
[1766559053164,0.001,2936.9,2936.4,7.79350952]
[1766559053355,5.7118,2936.9,2936.3,5.19998338]
[1766559053568,5.7118,2936.9,2936.4,0.891]
[1766559053875,5.7118,2936.9,2936.3,1.02414824]
[1766559054082,5.7118,2936.9,2936.3,0.893]
[1766559055384,5.7118,2936.9,2936.3,4.29863706]
[1766559061669,5.7118,2936.9,2936.3,3.40763706]
[1766559062799,5.7118,2936.9,2936.3,4.28030483]
[1766559063001,0.001,2936.9,2936.3,12.96498241]
[1766559063173,0.001,2937.1,2936.6,4.38803102]
[1766559063495,0.001,2937.1,2936.7,0.92505182]
[1766559064971,0.001,2937.1,2936.7,4.33014905]
[1766559065194,5.78927854,2937.2,2936.7,4.33014905]
[1766559067906,5.79127854,2937.2,2936.7,4.33014905]
[1766559068070,5.79127854,2937.2,2936.7,5.20599773]
[1766559070084,5.78106474,2937.2,2936.7,5.20599773]
[1766559070903,5.78106474,2937.2,2936.7,8.61118041]
[1766559071102,5.78106474,2937.2,2936.7,5.17194591]
[1766559071303,5.78106474,2937.2,2936.7,5.20599773]
[1766559076303,5.78106474,2937.2,2936.7,5.17194591]
[1766559078395,5.78106474,2937.2,2936.7,0.891]
[1766559083094,5.78106474,2937.2,2936.6,0.891]
[1766559083602,5.78106474,2937.2,2936.6,4.29728186]
[1766559084320,5.78106474,2937.2,2936.6,0.892]
[1766559085336,5.78106474,2937.2,2936.6,0.001]
[1766559085544,0.5794702,2937.1,2936.6,0.001]
[1766559085711,5.7985,2937.1,2936.6,0.001]
[1766559093759,0.002,2937.2,2936.6,0.001]
[1766559094450,5.6688,2937.2,2936.6,0.001]
[1766559095046,0.002,2937.2,2936.6,0.001]
[1766559095714,5.6688,2937.2,2936.6,0.001]
[1766559102963,5.6688,2937.2,2936.7,3.40518268]
[1766559105875,5.6688,2937.2,2936.7,6.81036536]
[1766559122909,5.6688,2937.2,2936.7,3.40518268]
[1766559123578,5.6688,2937.2,2936.7,6.81036536]
[1766559124108,0.002,2937.2,2936.7,6.81036536]
[1766559127226,0.002,2937.2,2936.7,7.5807019]
[1766559128612,5.19963722,2937.4,2936.7,7.5807019]
[1766559128811,5.19963722,2937.4,2936.7,6.81036536]
[1766559135519,5.19963722,2937.4,2936.7,3.40518268]
[1766559147237,5.19963722,2937.4,2936.6,4.29725637]
[1766559148343,5.19963722,2937.4,2936.6,7.70255501]
[1766559150536,5.19963722,2937.4,2936.7,0.03405182]
[1766559151539,5.19963722,2937.4,2936.8,3.40506673]
[1766559152020,5.186,2937.4,2936.8,3.40506673]
[1766559152224,5.186,2937.4,2936.9,0.0340495]
[1766559155442,5.186,2937.4,2936.8,3.40506673]
[1766559157049,5.186,2937.4,2936.7,3.40518268]
[1766559158041,5.186,2937.4,2936.6,5.31931512]
[1766559158243,5.3189,2937.2,2936.6,3.40625742]
[1766559158445,5.3189,2937.2,2936.6,0.001]
[1766559158642,5.3189,2937.2,2936.6,3.406285]
[1766559160768,0.001,2937.4,2936.7,0.03405182]
[1766559161066,5.3199,2937.4,2936.7,1.25958179]
[1766559161266,5.3199,2937.4,2936.8,4.38660654]
[1766559161462,0.001,2937.5,2937.1,4.38660654]
[1766559161653,5.3199,2937.7,2937.1,4.38660654]
[1766559161832,5.3199,2937.7,2936.9,7.79155733]
[1766559162029,0.01363722,2937.6,2937.0,0.97045315]
[1766559162940,5.09433722,2937.6,2937.0,0.97045315]
[1766559163258,5.09433722,2937.4,2936.8,3.4050158]
[1766559163467,5.09433722,2937.4,2936.7,3.40516157]
[1766559163468,0.01363722,2937.1,2936.7,3.40516157]
[1766559163639,5.09433722,2937.1,2936.7,5.31814964]
[1766559164760,5.09433722,2937.1,2936.7,1.02198807]
[1766559164965,5.09433722,2937.1,2936.6,4.29723422]
[1766559165171,5.09433722,2937.1,2936.6,5.31926755]
[1766559165360,5.09433722,2937.1,2936.6,4.29723422]
[1766559166376,5.09433722,2937.1,2936.6,0.001]
[1766559166540,5.09433722,2936.9,2936.6,0.001]
[1766559167869,5.0807,2936.9,2936.6,0.001]
[1766559168072,5.0807,2936.9,2936.8,0.001]
[1766559172610,5.0807,2936.9,2936.6,0.001]
[1766559175676,0.01363722,2936.8,2936.6,0.001]
[1766559176004,5.09433722,2936.8,2936.6,0.001]
[1766559176389,5.09433722,2936.8,2936.5,0.001]
[1766559176390,5.60513466,2936.8,2936.5,0.001]
[1766559176594,5.59149744,2936.8,2936.5,0.001]
[1766559182302,5.0807,2936.8,2936.5,0.001]
[1766559184088,0.01363722,2936.7,2936.5,0.001]
[1766559185411,5.04463722,2936.7,2936.5,0.001]
[1766559185612,5.04463722,2936.7,2936.3,0.002]
[1766559186311,0.01363722,2936.3,2935.6,0.001]
[1766559186614,5.031,2936.2,2935.6,4.29842749]
[1766559187013,5.031,2936.0,2935.6,0.001]
[1766559187209,5.031,2936.0,2935.4,0.001]
[1766559187414,5.031,2935.8,2935.4,0.001]
[1766559188819,5.031,2935.5,2935.3,0.001]
[1766559188988,5.04463722,2935.3,2935.0,0.002]
[1766559192344,0.01363722,2935.1,2935.0,0.002]
[1766559192631,5.04463722,2935.1,2934.7,0.03407503]
[1766559193216,5.04463722,2935.1,2934.7,3.4415682]
[1766559193624,5.04463722,2935.1,2934.7,0.03407503]
[1766559193825,5.04463722,2935.1,2934.6,0.03407619]
[1766559194328,5.04463722,2935.1,2934.6,3.44168273]
[1766559195132,5.04463722,2935.1,2934.6,3.40760654]
[1766559195332,0.01024697,2935.0,2934.5,3.40962439]
[1766559195535,5.04124697,2935.0,2934.5,3.40962439]
[1766559196038,5.04124697,2935.0,2934.5,0.002]
[1766559196227,5.04124697,2935.0,2934.5,3.40969424]
[1766559196743,5.04124697,2935.0,2934.5,0.002]
[1766559196911,5.031,2934.8,2934.5,0.002]
[1766559198036,5.031,2934.8,2934.6,0.001]
[1766559198204,5.031,2934.8,2934.5,0.002]
[1766559199053,5.031,2934.5,2934.2,0.001]
[1766559199337,0.5031,2934.4,2934.2,0.001]
[1766559199549,5.031,2934.5,2934.2,0.001]
[1766559200210,5.031,2934.5,2934.0,3.39900602]
[1766559201559,5.031,2934.5,2933.9,4.29940393]
[1766559201560,5.031,2934.5,2933.9,4.29942779]
[1766559201847,5.031,2934.5,2933.8,0.001]
[1766559201848,5.031,2934.2,2933.8,0.001]
[1766559202047,5.04124697,2934.1,2933.8,0.001]
[1766559202352,5.031,2934.1,2933.8,0.001]
[1766559203635,5.031,2934.1,2933.5,3.40989687]
[1766559203838,5.031,2933.9,2933.5,0.001]
[1766559204433,5.031,2934.2,2933.5,0.001]
[1766559204758,0.01363722,2934.3,2933.5,0.001]
[1766559204962,0.01363722,2934.3,2933.5,0.87431386]
[1766559205122,0.01363722,2934.3,2933.5,0.86408892]
[1766559205322,5.04463722,2934.3,2934.0,0.002]
[1766559205920,0.01363722,2934.1,2934.0,0.002]
[1766559206348,5.04463722,2934.3,2934.0,0.002]
[1766559206534,5.65277849,2934.3,2934.0,0.002]
[1766559208660,0.01363722,2934.2,2934.0,0.002]
[1766559208964,5.031,2934.1,2933.6,3.40878101]
[1766559211885,5.031,2934.1,2933.4,6.81802686]
[1766559212184,5.031,2934.1,2933.5,0.77090269]
[1766559212365,5.031,2934.1,2934.0,0.002]
[1766559212952,5.031,2934.1,2933.4,7.84116513]
[1766559213156,4.979,2933.9,2933.4,4.4321517]
[1766559213354,0.01363722,2934.0,2933.4,7.84116513]
[1766559213692,4.979,2934.1,2933.5,0.87321651]
[1766559213899,0.01363722,2934.2,2933.5,0.87321651]
[1766559214256,0.01363722,2934.2,2933.6,3.40878101]
[1766559214806,4.99263722,2934.2,2933.6,3.40878101]
[1766559216598,5.96267549,2934.5,2933.7,0.03408664]
[1766559216761,4.9249,2934.4,2933.7,0.03408664]
[1766559218995,4.9249,2934.4,2933.8,3.40854863]
[1766559219200,4.9249,2934.4,2933.9,0.03408432]
[1766559220917,4.9249,2934.4,2933.9,3.4424609]
[1766559224532,0.01363722,2934.3,2933.9,3.40837658]
[1766559224989,0.01363722,2934.3,2933.8,3.4085025]
[1766559225399,0.01363722,2934.3,2933.9,3.40842934]
[1766559226735,4.9249,2934.4,2933.9,3.40842934]
[1766559226736,1.02308593,2934.7,2933.9,7.5911791]
[1766559227021,4.9259,2934.4,2934.0,1.02294639]
[1766559227230,4.78650717,2934.2,2934.0,1.02294639]
[1766559227434,4.78650717,2934.2,2933.8,3.40853088]
[1766559227602,4.78650717,2934.2,2933.8,4.43156797]
[1766559227802,4.78650717,2934.2,2933.6,4.30076137]
[1766559228000,4.9249,2933.1,2932.8,0.002]
[1766559228303,4.9249,2933.1,2932.4,6.36595474]
[1766559228304,4.9249,2932.6,2932.4,0.002]
[1766559228549,4.91467506,2932.6,2932.1,1.02367941]
[1766559228731,0.01704449,2932.5,2932.1,3.99177941]
[1766559228905,1.03731663,2933.2,2932.2,2.9681]
[1766559228906,4.9249,2933.1,2932.2,2.9681]
[1766559229110,0.01704449,2933.0,2932.4,2.9681]
[1766559229429,4.94194449,2933.0,2932.5,3.00340059]
[1766559229914,0.01363722,2933.4,2932.6,2.9693]
[1766559230092,0.01363722,2933.4,2932.8,2.95906913]
[1766559230298,0.01363722,2933.4,2933.0,2.9602]
[1766559232732,0.01704449,2933.2,2933.0,2.9602]
[1766559233234,0.01704449,2933.2,2932.8,7.39661589]
[1766559234516,0.01704449,2933.2,2933.0,0.002]
[1766559235146,4.9249,2933.3,2933.0,0.002]
[1766559235657,0.01704449,2933.2,2933.0,0.002]
[1766559235961,4.94194449,2933.2,2932.8,1.02343146]
[1766559236126,4.94194449,2933.2,2932.8,7.40183039]
[1766559236328,0.01704449,2933.2,2932.9,2.9698]
[1766559236550,4.449e-05,2933.2,2932.9,2.9698]
[1766559236750,4.449e-05,2933.2,2933.0,2.9528]
[1766559237046,0.01363722,2933.4,2933.0,2.9528]
[1766559237944,0.001,2934.4,2933.1,3.05479362]
[1766559238145,4.9249,2934.1,2933.1,3.0207]
[1766559238348,5.8179,2934.1,2933.1,1.02327437]
[1766559238526,5.8179,2934.1,2933.0,3.40941026]
[1766559238725,5.8179,2934.1,2933.1,1.02328135]
[1766559238961,4.9249,2933.9,2933.1,4.04498135]
[1766559239165,4.9249,2933.9,2933.1,1.02328135]
[1766559239728,4.9249,2933.8,2932.9,6.43249459]
[1766559240168,4.9249,2933.8,2932.9,7.45580386]
[1766559240455,4.9249,2933.8,2933.0,3.024]
[1766559240660,4.9249,2933.8,2933.0,5.4707219]
[1766559240862,4.9249,2933.8,2933.0,4.44741263]
[1766559241072,4.9249,2933.8,2933.1,1.02330927]
[1766559242053,4.9249,2933.8,2933.1,7.45774944]
[1766559243049,4.9249,2933.8,2933.2,3.0262]
[1766559244776,4.9249,2933.8,2933.2,6.43543494]
[1766559246780,4.9249,2933.8,2933.2,3.0262]
[1766559247396,4.9249,2933.8,2933.2,6.4354258]
[1766559248811,0.001,2934.1,2933.2,5.07805269]
[1766559248975,5.0994,2934.0,2933.3,3.06639129]
[1766559249181,5.0994,2934.0,2933.3,8.45211626]
[1766559249390,5.0994,2934.0,2933.4,6.44231343]
[1766559249771,5.0994,2934.0,2933.4,7.46546217]
[1766559250725,5.0994,2934.0,2933.4,4.43216217]
[1766559251133,5.1004,2934.0,2933.4,4.43216217]
[1766559251340,5.61064,2934.0,2933.4,1.02314874]
[1766559251504,5.61064,2934.0,2933.2,6.44341502]
[1766559251834,5.61064,2934.0,2933.2,3.40921502]
[1766559253408,5.61064,2934.0,2932.8,6.44882321]
[1766559253409,5.0994,2933.8,2932.8,6.44882321]
[1766559253610,5.0994,2933.6,2932.8,6.44882321]
[1766559255152,5.0994,2933.6,2932.9,0.03409594]
[1766559255624,5.0994,2933.6,2933.0,3.40947834]
[1766559256215,5.0994,2933.6,2933.0,6.44857834]
[1766559257215,5.0994,2933.6,2933.0,3.0391]
[1766559257539,5.0994,2933.4,2933.0,3.0391]
[1766559259056,5.0994,2933.4,2933.1,3.4093621]
[1766559259213,5.0994,2933.4,2933.0,6.45053962]
[1766559265725,5.0994,2933.7,2933.1,3.08269362]
[1766559267147,5.0994,2933.7,2933.2,3.0494]
[1766559270242,5.80107407,2933.7,2933.2,3.0494]
[1766559270446,5.80107407,2933.7,2933.0,0.002]
[1766559272434,5.0136,2933.5,2932.8,0.002]
[1766559273040,5.0136,2933.5,2932.8,3.4116909]
[1766559273240,6.03706986,2933.5,2932.8,3.4116909]
[1766559273442,5.0136,2933.4,2932.8,6.46846442]
[1766559275668,5.0136,2933.4,2932.9,3.059]
[1766559275957,5.59777407,2933.7,2933.0,3.059]
[1766559276256,0.001,2933.6,2933.0,3.09309478]
[1766559276656,4.8971,2933.6,2933.0,3.059]
[1766559276831,5.81716521,2933.6,2933.0,3.059]
[1766559277873,5.81716521,2933.6,2933.0,6.46847227]
[1766559278675,5.81716521,2933.6,2933.1,3.0611]
[1766559280346,0.895,2933.8,2932.8,4.30366442]
[1766559280347,0.001,2933.8,2933.6,3.0615]
[1766559281547,0.001,2934.0,2933.6,3.0615]
[1766559282751,0.001,2934.1,2933.7,3.0618]
[1766559285560,0.001,2934.1,2933.8,3.09688548]
[1766559285878,4.8961,2934.3,2933.8,3.09688548]
[1766559285879,0.001,2934.4,2934.0,3.0628]
[1766559287983,4.8971,2934.4,2934.0,3.0628]
[1766559288684,4.8971,2934.4,2934.0,6.47111456]
[1766559288982,0.001,2934.4,2934.1,3.0637]
[1766559291985,4.8961,2934.9,2934.3,3.0645]
[1766559293994,4.8961,2934.8,2934.3,3.0645]
[1766559294172,4.8961,2934.8,2934.2,4.39667101]
[1766559294487,4.8961,2934.8,2934.1,1.09028357]
[1766559297367,4.8961,2934.8,2934.1,4.15888357]
[1766559299002,4.8971,2934.8,2934.1,4.15888357]
[1766559299965,4.8971,2934.8,2934.1,1.09028357]
[1766559300166,4.8961,2934.7,2934.0,0.002]
[1766559301472,4.8961,2934.7,2934.0,3.41031023]
[1766559301666,4.8961,2934.7,2934.0,6.48111023]
[1766559301871,4.8961,2934.7,2934.1,3.0708]
[1766559302166,4.8961,2934.7,2934.1,6.47899633]
[1766559302398,0.47281334,2934.8,2934.3,4.39667101]
[1766559302399,0.001,2934.8,2934.3,4.39667101]
[1766559302704,0.001,2934.8,2934.4,3.0714]
[1766559304400,5.0906,2934.8,2934.4,3.0714]
[1766559308110,5.0906,2934.8,2934.1,9.23343666]
[1766559308283,5.0906,2934.8,2934.1,4.83676565]
[1766559309212,5.0906,2934.8,2934.2,1.13209769]
[1766559310496,5.0906,2934.8,2934.0,6.48416362]
[1766559311206,5.0906,2934.8,2934.0,3.41026362]
[1766559311807,5.0906,2934.8,2934.0,0.002]
[1766559312113,5.0896,2934.7,2934.0,0.002]
[1766559313737,5.0896,2934.7,2933.8,3.44258516]
[1766559313922,5.0896,2934.5,2933.8,3.44258516]
[1766559314122,5.0896,2934.5,2933.8,3.40849968]
[1766559314910,5.0896,2934.5,2933.9,0.03408432]
[1766559315293,5.0896,2934.5,2933.8,3.40849968]
[1766559315493,5.0896,2934.5,2933.8,3.41049968]
[1766559315717,5.0896,2934.3,2933.8,3.41049968]
[1766559317229,5.0896,2934.3,2933.9,0.03408432]
[1766559317428,5.0896,2934.3,2933.8,0.002]
[1766559317913,5.0896,2934.2,2933.2,3.40918307]
[1766559319625,3.40813492,2934.2,2933.2,3.40918307]
[1766559319832,5.43041349,2934.1,2933.2,3.40918307]
[1766559320909,5.43041349,2934.1,2933.3,3.0842]
[1766559321497,5.43041349,2934.1,2933.3,6.49325906]
[1766559324016,5.43041349,2934.1,2933.4,3.0736]
[1766559324309,5.43041349,2934.1,2933.4,3.10769013]
[1766559324627,5.62758962,2934.0,2933.4,3.10769013]
[1766559326211,5.62758962,2934.0,2933.4,6.51661248]
[1766559331210,5.0896,2934.0,2933.5,3.0319]
[1766559335440,5.0896,2934.0,2933.4,0.002]
[1766559336146,5.0896,2934.0,2933.4,3.41100297]
[1766559338148,5.0896,2934.0,2933.4,0.002]
[1766559338348,5.0896,2934.0,2933.4,3.02559013]
[1766559339453,5.63264135,2934.0,2933.4,3.02559013]
[1766559339951,5.63364135,2934.0,2933.4,3.02559013]
[1766559340327,5.63364135,2934.0,2933.5,3.40889722]
[1766559340647,5.63364135,2934.0,2933.5,2.9807]
[1766559347460,5.63364135,2934.0,2933.4,0.002]
[1766559348745,5.1584,2933.8,2933.4,0.002]
[1766559356472,5.1594,2933.8,2933.3,0.002]
[1766559356858,5.1584,2933.7,2933.0,0.002]
[1766559360282,5.1584,2933.7,2933.1,2.9033]
[1766559360454,5.1584,2933.7,2933.2,0.03409245]
[1766559360655,0.001,2933.8,2933.4,2.9033]
[1766559360876,0.001,2933.8,2933.4,2.93739013]
[1766559361273,4.8083,2933.8,2933.4,2.93739013]
[1766559361578,4.8083,2933.8,2933.4,2.9033]
[1766559363384,4.8083,2933.8,2933.4,6.31231339]
[1766559363573,4.8083,2933.8,2933.4,6.31431339]
[1766559364887,0.001,2933.8,2933.5,2.8898]
[1766559370286,0.001,2933.8,2933.5,6.2986748]
[1766559372989,0.001,2933.8,2933.4,3.44504864]
[1766559372990,4.8083,2933.8,2933.4,3.44504864]
[1766559379299,4.8083,2933.8,2933.4,3.41095851]
[1766559382293,4.8083,2933.8,2933.4,2.87529013]
[1766559384007,4.8083,2933.8,2933.4,2.8412]
[1766559387715,4.8083,2933.8,2933.4,6.25013348]
[1766559387899,4.8083,2933.8,2933.5,2.7616]
[1766559388093,0.001,2933.8,2933.5,2.7616]
[1766559388996,4.8083,2933.8,2933.4,3.41093348]
[1766559395030,4.8083,2933.8,2933.4,0.002]
[1766559395330,4.8083,2933.8,2933.4,2.6822]
[1766559397229,5.28923,2933.8,2933.3,0.002]
[1766559397429,4.9451,2933.7,2933.0,0.002]
[1766559398029,4.9451,2933.7,2933.3,0.002]
[1766559398728,5.8391,2933.7,2933.0,0.002]
[1766559399097,5.8391,2933.7,2932.9,0.002]
[1766559399330,4.9451,2933.5,2932.9,0.002]
[1766559401429,4.9451,2933.5,2932.9,2.623]
[1766559403625,4.9451,2933.5,2932.9,6.03248159]
[1766559406632,4.9451,2933.5,2932.9,3.41148159]
[1766559413043,4.9451,2933.0,2932.8,0.002]
[1766559413332,5.45835894,2932.9,2932.6,0.002]
[1766559413533,4.96214449,2932.9,2932.6,0.002]
[1766559415039,4.96214449,2932.8,2932.6,0.002]
[1766559415831,0.01704449,2933.1,2932.6,0.002]
[1766559415832,4.96214449,2933.1,2932.6,0.002]
[1766559416144,4.96214449,2933.1,2932.6,2.4997]
[1766559416349,0.58561445,2933.0,2932.6,2.4997]
[1766559416709,0.01704449,2932.9,2932.6,2.4997]
[1766559417314,0.01704449,2932.7,2932.3,5.90048051]
[1766559417535,0.01704449,2932.7,2932.5,0.002]
[1766559419150,4.96214449,2932.7,2932.2,0.002]
[1766559419440,0.01704449,2932.5,2932.2,3.41239959]
[1766559419616,0.01704449,2932.5,2932.2,5.88279959]
[1766559420040,0.01704449,2932.5,2932.1,0.002]
[1766559420041,4.96214449,2932.3,2932.1,0.002]
[1766559420252,4.95191362,2932.3,2932.1,0.002]
[1766559420453,4.95191362,2932.3,2931.7,3.3644]
[1766559420930,4.95191362,2932.3,2931.8,3.41080738]
[1766559421333,0.01704449,2932.1,2931.8,3.41080738]
[1766559421731,4.84584449,2932.1,2931.8,3.41080738]
[1766559422360,4.84584449,2931.9,2931.7,0.002]
[1766559422539,4.84584449,2931.9,2931.2,7.74975897]
[1766559422540,0.01704449,2931.8,2931.2,2.4615]
[1766559422856,5.7228,2932.0,2931.5,2.4615]
[1766559423458,0.01704449,2931.9,2931.5,2.4615]
[1766559423758,4.84584449,2931.9,2931.5,2.4615]
[1766559423958,5.47016228,2931.9,2931.5,2.4615]
[1766559425252,5.47016228,2931.9,2931.5,2.45126738]
[1766559425427,4.84584449,2931.4,2930.4,3.41246214]
[1766559425632,0.64136228,2931.9,2930.4,3.41246214]
[1766559425633,1.51831779,2931.9,2931.4,2.4262]
[1766559425954,0.894,2931.9,2931.4,2.4262]
[1766559426257,5.7228,2931.9,2931.4,2.4262]
[1766559427363,4.8288,2931.9,2931.4,2.4262]
[1766559429362,4.8288,2931.9,2931.3,2.4004]
[1766559429559,5.74213516,2931.9,2931.3,2.4004]
[1766559430132,5.74213516,2931.9,2931.3,2.39016599]
[1766559432363,5.74213516,2931.9,2931.3,2.39216599]
[1766559432565,4.8288,2931.8,2931.3,5.80361294]
[1766559436877,4.8288,2931.8,2931.3,2.39216599]
[1766559438085,4.8288,2931.8,2931.3,5.80358764]
[1766559438988,4.8288,2931.8,2931.3,2.39216599]
[1766559439883,4.8288,2931.8,2931.3,5.8035863]
[1766559441097,4.8288,2931.8,2931.3,2.39216599]
[1766559443094,0.001,2931.9,2931.4,2.3092]
[1766559443389,0.001,2931.9,2931.4,3.22261745]
[1766559443889,4.8298,2931.9,2931.4,2.3092]
[1766559445317,4.8298,2931.9,2931.3,0.002]
[1766559447821,4.8298,2931.9,2931.4,0.002]
[1766559449081,4.8288,2932.2,2931.4,0.002]
[1766559449391,4.8288,2932.7,2932.0,5.0007]
[1766559449723,4.8288,2932.7,2931.9,4.40289201]
[1766559449724,0.001,2933.1,2932.3,5.0007]
[1766559449922,0.001,2933.1,2932.5,5.0007]
[1766559450124,4.8298,2933.1,2932.5,5.0007]
[1766559450408,5.40218,2933.1,2932.5,5.0007]
[1766559452111,5.40218,2933.1,2932.6,0.03409943]
[1766559453308,5.40218,2933.1,2932.5,5.0007]
[1766559454188,4.8298,2933.1,2932.5,5.0007]
[1766559455385,4.8298,2933.1,2932.3,4.6704]
[1766559455588,4.5151,2933.0,2932.2,3.41036616]
[1766559456488,4.5151,2933.0,2932.2,8.08076616]
[1766559457113,4.5151,2933.0,2932.2,9.31920385]
[1766559457907,4.5151,2932.9,2932.2,5.90883769]
[1766559458208,4.5151,2932.9,2932.2,4.6704]
[1766559458716,5.4091,2932.9,2932.1,3.41051234]
[1766559459219,5.4091,2932.9,2932.0,6.8212824]
[1766559459422,5.4091,2932.9,2932.0,11.4916824]
[1766559459801,5.4091,2932.9,2932.1,4.6704]
[1766559460098,5.4091,2932.9,2932.2,1.14916824]
[1766559461028,5.4091,2932.9,2932.2,5.81956824]
[1766559461403,5.4091,2932.9,2932.3,4.6704]
[1766559462931,5.4101,2932.9,2932.3,4.6704]
[1766559463331,4.5161,2932.9,2932.3,3.41023343]
[1766559463535,0.001,2933.1,2932.5,4.6704]
[1766559463730,0.001,2933.1,2932.6,4.70449943]
[1766559467639,0.001,2933.1,2932.6,8.11433098]
[1766559467845,0.001,2933.1,2932.6,8.08023155]
[1766559468426,0.001,2933.1,2932.6,3.40983155]
[1766559468736,0.001,2933.1,2932.7,4.6704]
[1766559469542,4.5161,2933.1,2932.7,4.6704]
[1766559470542,4.5161,2933.1,2932.7,8.08022074]
[1766559471340,4.5161,2933.1,2932.4,3.86609773]
[1766559471545,4.5161,2933.1,2932.5,3.79659709]
[1766559476052,4.5161,2933.1,2932.5,8.46699709]
[1766559476739,4.5161,2933.1,2932.6,4.70449943]
[1766559476740,0.001,2933.1,2932.6,4.70449943]
[1766559476936,0.001,2933.5,2932.8,4.6704]
[1766559477254,0.001,2933.5,2933.0,4.6704]
[1766559477573,5.4101,2933.8,2933.1,4.70449362]
[1766559478063,5.4101,2933.8,2933.2,4.6704]
[1766559478434,5.4101,2933.8,2933.2,4.70449245]
[1766559478830,4.5161,2933.8,2933.2,4.6704]
[1766559479062,4.5161,2933.8,2933.3,4.70449129]
[1766559479259,0.001,2933.8,2933.3,4.70449129]
[1766559479583,0.001,2933.8,2933.3,4.6704]
[1766559479980,0.001,2934.0,2933.5,4.6704]
[1766559480202,0.001,2934.0,2933.6,0.03408781]
[1766559480353,0.001,2934.0,2933.6,4.70448781]
[1766559481585,0.001,2934.0,2933.6,4.6704]
[1766559481952,4.796,2933.9,2933.3,3.40908643]
[1766559482280,4.796,2933.9,2933.4,4.5745]
[1766559482583,4.796,2933.9,2933.3,0.4557991]
[1766559483175,4.796,2933.9,2933.3,3.86492484]
[1766559483457,4.796,2933.9,2933.3,8.43942484]
[1766559483682,4.796,2933.9,2933.3,5.0302991]
[1766559484474,4.796,2933.9,2933.3,8.43942706]
[1766559484682,4.797,2933.9,2933.4,0.95883317]
[1766559484861,4.797,2933.9,2933.4,5.53333317]
[1766559485177,0.001,2933.9,2933.4,5.53333317]
[1766559485376,0.001,2933.9,2933.6,4.5745]
[1766559485678,0.001,2934.0,2933.6,4.5745]
[1766559486664,4.797,2934.0,2933.6,4.5745]
[1766559488279,4.797,2934.0,2933.6,4.60858781]
[1766559488761,4.797,2934.0,2933.6,8.01736293]
[1766559488962,4.797,2934.0,2933.6,7.98327512]
[1766559489683,4.797,2934.0,2933.6,4.5745]
[1766559490357,4.797,2934.0,2933.6,8.01734684]
[1766559490555,4.797,2934.0,2933.6,7.98325903]
[1766559491178,0.001,2934.0,2933.7,4.60858664]
[1766559491383,0.001,2934.1,2933.7,4.60858664]
[1766559492685,0.001,2934.0,2933.7,4.60858664]
[1766559493185,0.001,2934.0,2933.8,4.5745]
[1766559494187,0.001,2934.0,2933.8,4.60858548]
[1766559497092,0.001,2934.0,2933.8,8.01712272]
[1766559497290,0.001,2934.0,2933.8,9.24913739]
[1766559498468,0.895,2934.3,2933.9,4.5745]
[1766559498683,4.796,2934.6,2933.9,4.5745]
[1766559498684,5.69,2934.6,2934.0,4.60858316]
[1766559500163,5.67976599,2934.6,2934.0,3.44231489]
[1766559500367,5.67976599,2934.6,2934.1,4.5745]
[1766559500866,5.67976599,2934.6,2934.1,4.608582]
[1766559501276,5.67976599,2934.6,2934.1,4.5745]
[1766559501777,5.67976599,2934.6,2934.0,0.03408316]
[1766559503003,7.70928084,2934.6,2933.8,1.081e-05]
[1766559503291,7.70928084,2934.6,2933.5,0.002]
[1766559503292,1.8829,2934.1,2933.0,4.5745]
[1766559503476,1.8829,2933.9,2933.0,4.5745]
[1766559503674,1.91700693,2933.8,2933.1,4.5745]
[1766559503897,0.03410693,2933.8,2933.1,4.60859362]
[1766559504096,0.03410693,2933.9,2933.1,4.60859362]
[1766559504400,1.91650693,2933.9,2933.1,4.5745]
[1766559504580,2.24151018,2933.9,2933.1,4.5745]
[1766559505094,2.23128349,2933.9,2933.1,3.40931899]
[1766559505299,2.23128349,2933.9,2933.2,4.5745]
[1766559507300,2.23128349,2933.9,2933.3,4.5745]
[1766559507676,2.23128349,2933.9,2933.3,4.60859129]
[1766559508001,2.23128349,2933.9,2933.3,4.5745]
[1766559508198,0.31262835,2933.8,2933.3,4.5745]
[1766559508375,0.02388024,2933.7,2933.3,4.5745]
[1766559509120,0.001,2934.0,2933.4,0.03409013]
[1766559509405,0.001,2934.0,2933.3,4.5745]
[1766559509406,2.2164,2933.9,2933.3,4.5745]
[1766559510416,2.2164,2933.9,2933.1,4.3972553]
[1766559510417,2.2163,2933.9,2933.1,0.002]
[1766559510581,2.2163,2933.9,2933.1,4.5765]
[1766559511286,2.2163,2933.9,2933.2,4.495]
[1766559511471,2.2162,2933.7,2933.2,7.90422093]
[1766559511677,2.2162,2933.7,2933.3,4.495]
[1766559514605,2.2162,2933.7,2933.1,0.002]